fUST/lending_fUST_20251122
["ID","MTS","AMOUNT","RATE_DAILY","PERIOD"]
[394652445,1763814646504,-164.99410844,0.000158,2]
[394652446,1763814646513,-560.0,0.0001589,2]
[394652447,1763814646524,-2500.0,0.0001589,2]
[394652448,1763814646536,-1364.69031638,0.0001589,2]
[394652449,1763814646546,-2500.0,0.0001589,2]
[394652450,1763814646555,-2500.0,0.0001589,2]
[394652451,1763814646566,-5209.935842,0.00016,2]
[394652452,1763814646580,-414.0,0.0001601,2]
[394652453,1763814646590,-2000.0,0.00016122,7]
[394652454,1763814646600,-203.86831681,0.00016156,20]
[394652455,1763814646615,-258.0,0.0001636,2]
[394652456,1763814646624,-529.63,0.00016438,2]
[394652457,1763814646634,-660.0,0.00016438,2]
[394652458,1763814646644,-856.25714323,0.00016438,2]
[394652459,1763814646654,-481.64464307,0.00016438,2]
[394652460,1763814646663,-267.58035726,0.00016438,2]
[394652461,1763814646672,-330.49716435,0.00016438,2]
[394652462,1763814646682,-807.91296475,0.00016438,2]
[394652463,1763814646693,-454.45104267,0.00016438,2]
[394652464,1763814646702,-252.47280148,0.00016438,2]
[394652465,1763814646712,-399.21396103,0.00016438,2]
[394652466,1763814646721,-380.29672812,0.00016438,2]
[394652467,1763814646733,-211.06468411,0.00016438,2]
[394652468,1763814646743,-549.57317614,0.00016438,2]
[394652469,1763814646752,-309.13491158,0.00016438,2]
[394652470,1763814646761,-171.74161754,0.00016438,2]
[394652471,1763814646771,-1064.40034933,0.00016438,2]
[394652472,1763814646780,-598.7251965,0.00016438,2]
[394652473,1763814646790,-332.62510916,0.00016438,2]
[394652474,1763814646800,-1296.612564,0.00016438,2]
[394652475,1763814646810,-729.34456725,0.00016438,2]
[394652476,1763814646819,-405.19142625,0.00016438,2]
[394652477,1763814646828,-161.3298889,0.00016438,2]
[394652478,1763814646838,-598.61926708,0.00016438,2]
[394652479,1763814646847,-336.72333773,0.00016438,2]
[394652480,1763814646857,-187.06852096,0.00016438,2]
[394652481,1763814646866,-379.92267268,0.00016438,7]
[394652482,1763814646875,-180.94746162,0.00016438,2]
[394652483,1763814646884,-263.88098889,0.00016438,2]
[394652484,1763814646895,-362.73110279,0.00016438,2]
[394652485,1763814646906,-317.38971494,0.00016438,2]
[394652486,1763814646916,-181.9953452,0.00016438,7]
[394652487,1763814646927,-372.43775526,0.00016438,2]
[394652488,1763814646936,-206.90986403,0.00016438,2]
[394652489,1763814646946,-155.07142643,0.00016438,7]
[394652490,1763814646955,-1711.96366715,0.00016438,2]
[394652491,1763814646964,-962.97956277,0.00016438,2]
[394652492,1763814646972,-534.98864599,0.00016438,2]
[394652493,1763814646982,-888.95686117,0.00016438,7]
[394652494,1763814646991,-428.62295245,0.00016438,2]
[394652495,1763814647000,-375.04508339,0.00016438,2]
[394652496,1763814647009,-222.56740709,0.00016438,7]
[394652497,1763814647018,-323.05963032,0.00016438,2]
[394652498,1763814647027,-217.90346519,0.00016438,2]
[394652499,1763814647036,-2467.88888229,0.00016438,2]
[394652500,1763814647045,-1713.81172381,0.00016438,2]
[394652501,1763814647053,-1096.83950324,0.00016438,2]
[394652502,1763814647062,-616.97222057,0.00016438,2]
[394652503,1763814647071,-342.76234476,0.00016438,2]
[394652504,1763814647080,-1828.54074343,0.00016438,7]
[394652505,1763814647089,-3000.0,0.00016438,2]
[394652506,1763814647099,-3000.0,0.00016438,2]
[394652507,1763814647107,-3000.0,0.00016438,2]
[394652508,1763814647118,-258.55580249,0.00016438,2]
[394652509,1763814647136,-153.99123166,0.00016473,2]
[394652510,1763814647145,-150.0,0.00016473,2]
[394652511,1763814647154,-406.80977102,0.00016515,2]
[394652512,1763814647163,-382.31138097,0.00016519,2]
[394652513,1763814647172,-226.00542835,0.0001656,2]
[394652514,1763814647181,-372.19845822,0.0001659,2]
[394652515,1763814647191,-169.7803894,0.0001659,2]
[394652516,1763814647199,-305.60470093,0.0001659,2]
[394652517,1763814647208,-543.29724609,0.0001659,2]
[394652518,1763814647216,-315.74933747,0.0001659,2]
[394652519,1763814647225,-360.85638568,0.0001659,2]
[394652520,1763814647235,-1108.35279293,0.00016607,7]
[394652521,1763814647248,-891.64720707,0.00016607,7]
[394652522,1763814647256,-723.2173707,0.00016635,2]
[394652523,1763814647265,-160.0,0.00016641,3]
[394652524,1763814647274,-436.92729254,0.00016642,2]
[394652525,1763814647283,-203.86831681,0.00016702,22]
[394652526,1763814647296,-160.0,0.00016776,4]
[394652527,1763814647304,-506.79058394,0.00016796,7]
[394652528,1763814647313,-326.11030824,0.00016816,7]
[394652529,1763814647322,-631.60274388,0.00016816,7]
[394652530,1763814647331,-306.24558108,0.00016819,7]
[394652531,1763814647340,-770.01222509,0.00016827,7]
[394652532,1763814647349,-564.64654632,0.00016831,7]
[394652533,1763814647358,-532.76666814,0.00016905,7]
[394652534,1763814647367,-160.0,0.00016912,5]
[394652535,1763814647376,-760.0,0.00016986,2]
[394652536,1763814647385,-3500.0,0.00016986,2]
[394652537,1763814647394,-3500.0,0.00016986,2]
[394652538,1763814647405,-3500.0,0.00016986,2]
[394652539,1763814647414,-161.95317451,0.00017,3]
[394652540,1763814647423,-353.21105852,0.00017,7]
[394652541,1763814647433,-45878.4664098,0.00017,2]
[394652542,1763814647441,-200.0,0.00017009,7]
[394652543,1763814647450,-200.0,0.00017009,7]
[394652544,1763814647460,-200.0,0.00017009,7]
[394652545,1763814647469,-151.0,0.00017021,2]
[394652546,1763814647478,-160.0,0.00017047,6]
[394652547,1763814647487,-421.22978314,0.00017051,7]
[394652548,1763814647496,-279.4455843,0.00017051,7]
[394652549,1763814647505,-2000.0,0.00017092,7]
[394652550,1763814647514,-160.0,0.00017183,7]
[394652551,1763814647523,-203.86831681,0.00017249,23]
[394652552,1763814647534,-1000.0,0.00017258,2]
[394652553,1763814647544,-791.0,0.00017258,2]
[394652554,1763814647553,-150.0,0.00017312,2]
[394652555,1763814647562,-160.0,0.00017318,8]
[394652556,1763814647571,-160.0,0.00017454,9]
[394652557,1763814647581,-529.63,0.00017534,2]
[394652558,1763814647590,-860.0,0.00017534,2]
[394652559,1763814647600,-4000.0,0.00017534,2]
[394652560,1763814647610,-1890.13963146,0.00017534,2]
[394652561,1763814648475,-1688.15574756,0.00017534,2]
[394652562,1763814648526,-421.70462098,0.00017534,2]
[394652563,1763814648539,-2919.21704741,0.00017534,2]
[394652568,1763814839682,300.0,8.217e-05,2]
[394652569,1763814847791,300.0,8.217e-05,2]
[394652570,1763814863444,300.0,8.217e-05,2]
[394652571,1763814872573,300.0,8.217e-05,2]
[394652572,1763814887115,6218.96312959,8.217e-05,2]
[394652573,1763814967319,500.0,9.8e-06,2]
[394652574,1763815077417,3056.85024958,7.973e-05,2]
[394652575,1763815085464,3056.85024958,7.973e-05,2]
[394652576,1763815093866,3056.85024958,7.973e-05,2]
[394652578,1763815294190,300.0,7.971e-05,2]
[394652579,1763815317550,150.0,7.932e-05,2]
[394652580,1763815339671,150.0,7.932e-05,2]
[394652581,1763815361720,150.0,7.932e-05,2]
[394652582,1763815385132,150.0,7.932e-05,2]
[394652583,1763815407297,150.0,7.932e-05,2]
[394652584,1763815429514,150.0,7.932e-05,2]
[394652585,1763815452245,150.0,7.932e-05,2]
[394652586,1763815475366,150.0,7.932e-05,2]
[394652587,1763815483487,150.0,7.932e-05,2]
[394652588,1763815506603,150.0,7.932e-05,2]
[394652589,1763815528869,150.0,7.932e-05,2]
[394652590,1763815550833,150.0,7.932e-05,2]
[394652591,1763815572866,150.0,7.932e-05,2]
[394652592,1763815595999,150.0,7.932e-05,2]
[394652625,1763815617682,150.0,7.932e-05,2]
[394652635,1763815640942,150.0,7.932e-05,2]
[394652636,1763815662907,150.0,7.932e-05,2]
[394652693,1763815685041,150.0,7.932e-05,2]
[394652694,1763815700753,150.0,7.932e-05,2]
[394652741,1763815708597,150.0,7.972e-05,2]
[394652746,1763815724460,150.0,7.972e-05,2]
[394652747,1763815732726,150.0,7.972e-05,2]
[394652749,1763815749114,150.0,7.972e-05,2]
[394652750,1763815757026,150.0,7.972e-05,2]
[394652751,1763815772414,150.0,7.972e-05,2]
[394652752,1763815780286,150.0,7.972e-05,2]
[394652753,1763815796110,150.0,7.972e-05,2]
[394652754,1763815803949,150.0,7.972e-05,2]
[394652755,1763815819324,150.0,7.972e-05,2]
[394652756,1763815827645,150.0,7.972e-05,2]
[394652785,1763815831943,-150.0,8.116e-05,2]
[394652787,1763815831954,-300.0,8.18e-05,2]
[394652789,1763815831964,-300.0,8.18e-05,2]
[394652791,1763815831975,-266.70874072,8.18e-05,2]
[394652794,1763815831999,-33.29125928,8.18e-05,2]
[394652796,1763815832009,-300.0,8.18e-05,2]
[394652798,1763815832018,-890000.0,8.181e-05,2]
[394652799,1763815832027,-500.0,8.253e-05,2]
[394652801,1763815832036,-500.0,8.253e-05,2]
[394652803,1763815832045,-157.2,8.253e-05,2]
[394652805,1763815832055,-383.39725848,8.253e-05,2]
[394652807,1763815832064,-500.0,8.253e-05,2]
[394652809,1763815832073,-500.0,8.253e-05,2]
[394652811,1763815832085,-500.0,8.253e-05,2]
[394652813,1763815832104,-25146.99553363,8.278e-05,2]
[394652815,1763815832118,-1646.43090544,8.278e-05,2]
[394652872,1763815837981,-427.55219364,8.219e-05,2]
[394652874,1763815837990,-467.05983812,8.278e-05,2]
[394652880,1763815838035,-643.09343148,8.278e-05,2]
[394652882,1763815838046,-411.46621203,8.278e-05,2]
[394652884,1763815838058,-2420.1853518,8.278e-05,2]
[394652886,1763815838070,-282.83175995,8.278e-05,2]
[394652889,1763815838081,-994.1700005,8.278e-05,2]
[394652891,1763815838092,-4475.41793699,8.278e-05,2]
[394653008,1763815844482,-963.63518554,8.195e-05,2]
[394653013,1763816043464,1472.81277527,7.952e-05,2]
[394653014,1763816066123,1472.81277527,7.952e-05,2]
[394653015,1763816088201,1472.81277527,7.952e-05,2]
[394653016,1763816110717,1472.81277527,7.952e-05,2]
[394653017,1763816134988,1472.81277527,7.952e-05,2]
[394653018,1763816157537,1472.81277527,7.952e-05,2]
[394653019,1763816180308,1472.81277527,7.952e-05,2]
[394653020,1763816202446,1472.81277527,7.952e-05,2]
[394653021,1763816219004,417.49779784,7.952e-05,2]
[394653024,1763816586719,-300.0,7.173e-05,2]
[394653025,1763816602140,11643.03292228,7.102e-05,2]
[394653026,1763816610850,6153.27033664,7.102e-05,2]
[394653027,1763816948127,-219.0,7.173e-05,2]
[394653028,1763816948148,-58.76578861,7.173e-05,2]
[394653029,1763816998647,10004.1328251,6.892e-05,2]
[394653046,1763817032208,-300.0,7.173e-05,2]
[394653047,1763817032218,-300.0,7.173e-05,2]
[394653048,1763817032228,-150.0,7.173e-05,2]
[394653049,1763817032238,-16505.3539323,7.174e-05,2]
[394653050,1763817032248,-300.0,7.316e-05,2]
[394653051,1763817032260,-300.0,7.316e-05,2]
[394653052,1763817032271,-300.0,7.316e-05,2]
[394653053,1763817032282,-300.0,7.316e-05,2]
[394653054,1763817032291,-300.0,7.316e-05,2]
[394653055,1763817032300,-300.0,7.316e-05,2]
[394653056,1763817032310,-300.0,7.316e-05,2]
[394653057,1763817032319,-300.0,7.316e-05,2]
[394653058,1763817032329,-300.0,7.316e-05,2]
[394653059,1763817032338,-300.0,7.316e-05,2]
[394653060,1763817032348,-300.0,7.316e-05,2]
[394653061,1763817032359,-300.0,7.316e-05,2]
[394653062,1763817032368,-300.0,7.316e-05,2]
[394653064,1763817032377,-300.0,7.316e-05,2]
[394653066,1763817032386,-300.0,7.316e-05,2]
[394653068,1763817032395,-420.0,7.89e-05,2]
[394653069,1763817032404,-500.0,8.072e-05,2]
[394653070,1763817032414,-186.53963508,8.072e-05,2]
[394653071,1763817032439,-313.46036492,8.072e-05,2]
[394653072,1763817032450,-500.0,8.072e-05,2]
[394653073,1763817032459,-473.88670861,8.072e-05,2]
[394653074,1763817032469,-500.0,8.072e-05,2]
[394653075,1763817032478,-500.0,8.072e-05,2]
[394653076,1763817032487,-500.0,8.072e-05,2]
[394653077,1763817032496,-500.0,8.072e-05,2]
[394653078,1763817032505,-500.0,8.072e-05,2]
[394653079,1763817032514,-500.0,8.072e-05,2]
[394653080,1763817032523,-500.0,8.072e-05,2]
[394653081,1763817032532,-500.0,8.072e-05,2]
[394653082,1763817032540,-500.0,8.072e-05,2]
[394653083,1763817032550,-500.0,8.072e-05,2]
[394653084,1763817032558,-629.82233602,8.072e-05,2]
[394653085,1763817032567,-500.0,8.072e-05,2]
[394653086,1763817032576,-500.0,8.072e-05,2]
[394653087,1763817032585,-500.0,8.072e-05,2]
[394653088,1763817032594,-500.0,8.072e-05,2]
[394653089,1763817032603,-500.0,8.072e-05,2]
[394653090,1763817032612,-500.0,8.072e-05,2]
[394653091,1763817032621,-500.0,8.072e-05,2]
[394653092,1763817032630,-500.0,8.072e-05,2]
[394653093,1763817032640,-500.0,8.072e-05,2]
[394653094,1763817032648,-500.0,8.072e-05,2]
[394653095,1763817032657,-500.0,8.072e-05,2]
[394653096,1763817032666,-500.0,8.072e-05,2]
[394653097,1763817032675,-500.0,8.072e-05,2]
[394653098,1763817032684,-500.0,8.072e-05,2]
[394653099,1763817032693,-500.0,8.072e-05,2]
[394653100,1763817032702,-500.0,8.072e-05,2]
[394653101,1763817032711,-500.0,8.072e-05,2]
[394653102,1763817032720,-500.0,8.072e-05,2]
[394653103,1763817032729,-500.0,8.072e-05,2]
[394653104,1763817032738,-500.0,8.072e-05,2]
[394653105,1763817032747,-500.0,8.072e-05,2]
[394653106,1763817032756,-500.0,8.072e-05,2]
[394653107,1763817032766,-500.0,8.072e-05,2]
[394653108,1763817032949,-500.0,8.072e-05,2]
[394653109,1763817032958,-500.0,8.072e-05,2]
[394653110,1763817032967,-500.0,8.072e-05,2]
[394653111,1763817032976,-500.0,8.072e-05,2]
[394653112,1763817032985,-500.0,8.072e-05,2]
[394653113,1763817032994,-501.34894142,8.072e-05,2]
[394653114,1763817033003,-500.0,8.072e-05,2]
[394653115,1763817033013,-3439.80442878,8.072e-05,2]
[394653116,1763817033022,-3439.80442878,8.072e-05,2]
[394653117,1763817033031,-3439.80442878,8.072e-05,2]
[394653118,1763817033040,-3439.80442878,8.072e-05,2]
[394653119,1763817033049,-3439.80442878,8.072e-05,2]
[394653120,1763817033058,-3439.80442878,8.072e-05,2]
[394653121,1763817033067,-3439.80442878,8.072e-05,2]
[394653122,1763817033076,-3439.80442878,8.072e-05,2]
[394653123,1763817033085,-3439.80442878,8.072e-05,2]
[394653124,1763817033095,-3439.80442878,8.072e-05,2]
[394653125,1763817033103,-3439.80442878,8.072e-05,2]
[394653126,1763817033112,-3439.80442878,8.072e-05,2]
[394653127,1763817033121,-3439.80442878,8.072e-05,2]
[394653128,1763817033131,-3439.80442878,8.072e-05,2]
[394653129,1763817033140,-3439.80442878,8.072e-05,2]
[394653130,1763817033148,-3439.80442878,8.072e-05,2]
[394653131,1763817033157,-3439.80442878,8.072e-05,2]
[394653132,1763817033167,-3439.80442878,8.072e-05,2]
[394653133,1763817033175,-3439.80442878,8.072e-05,2]
[394653134,1763817033185,-3439.80442878,8.072e-05,2]
[394653135,1763817033195,-3439.80442878,8.072e-05,2]
[394653136,1763817033204,-3439.80442878,8.072e-05,2]
[394653137,1763817033213,-3439.80442878,8.072e-05,2]
[394653138,1763817033223,-3439.80442878,8.072e-05,2]
[394653139,1763817033232,-3439.80442878,8.072e-05,2]
[394653140,1763817033241,-3439.80442878,8.072e-05,2]
[394653141,1763817033250,-3439.80442878,8.072e-05,2]
[394653142,1763817033260,-3439.80442878,8.072e-05,2]
[394653143,1763817033270,-3439.80442878,8.072e-05,2]
[394653144,1763817033282,-3439.80442878,8.072e-05,2]
[394653145,1763817033291,-3439.80442878,8.072e-05,2]
[394653146,1763817033300,-3439.80442878,8.072e-05,2]
[394653147,1763817033311,-3439.80442878,8.072e-05,2]
[394653148,1763817033320,-3439.80442878,8.072e-05,2]
[394653149,1763817033329,-3439.80442878,8.072e-05,2]
[394653150,1763817033338,-3439.80442878,8.072e-05,2]
[394653151,1763817033348,-3439.80442878,8.072e-05,2]
[394653152,1763817033359,-3439.80442878,8.072e-05,2]
[394653153,1763817033368,-3439.80442878,8.072e-05,2]
[394653154,1763817033379,-3439.80442878,8.072e-05,2]
[394653155,1763817033388,-3288.04835103,8.072e-05,2]
[394653156,1763817033397,-3288.04835103,8.072e-05,2]
[394653157,1763817033406,-3288.04835103,8.072e-05,2]
[394653158,1763817033415,-3288.04835103,8.072e-05,2]
[394653159,1763817033425,-3288.04835103,8.072e-05,2]
[394653160,1763817033435,-3288.04835103,8.072e-05,2]
[394653161,1763817033444,-3288.04835103,8.072e-05,2]
[394653162,1763817033453,-3288.04835103,8.072e-05,2]
[394653163,1763817033462,-3288.04835103,8.072e-05,2]
[394653164,1763817033471,-3288.04835103,8.072e-05,2]
[394653165,1763817033480,-3288.04835103,8.072e-05,2]
[394653166,1763817033490,-3288.04835103,8.072e-05,2]
[394653167,1763817033499,-3288.04835103,8.072e-05,2]
[394653168,1763817033509,-3288.04835103,8.072e-05,2]
[394653169,1763817033517,-3288.04835103,8.072e-05,2]
[394653170,1763817033527,-3288.04835103,8.072e-05,2]
[394653171,1763817033536,-3288.04835098,8.072e-05,2]
[394653172,1763817033545,-455530.68847169,8.073e-05,2]
[394653173,1763817033558,-36563.04896694,8.073e-05,2]
[394653174,1763817033569,-1000.0,8.073e-05,2]
[394653184,1763817038163,-3068.87568946,8.073e-05,2]
[394653185,1763817038175,-301.25937483,8.073e-05,2]
[394653224,1763817040401,-789.83713198,8.073e-05,2]
[394653441,1763818233233,-150.0,7.696e-05,2]
[394653442,1763818233244,-150.0,7.773e-05,2]
[394653443,1763818233253,-500.0,7.965e-05,2]
[394653444,1763818233262,-223.31724749,7.965e-05,2]
[394653445,1763818233326,-276.68275251,7.965e-05,2]
[394653446,1763818233335,-497.27754103,7.965e-05,2]
[394653447,1763818233345,-500.0,7.965e-05,2]
[394653448,1763818233354,-300.0,7.965e-05,2]
[394653449,1763818233363,-500.0,7.967e-05,2]
[394653450,1763818233373,-500.0,7.967e-05,2]
[394653451,1763818233383,-281.72069603,7.967e-05,2]
[394653452,1763818233392,-500.0,7.967e-05,2]
[394653453,1763818233402,-500.0,7.967e-05,2]
[394653454,1763818233412,-500.0,7.967e-05,2]
[394653455,1763818233422,-38200.18328365,7.968e-05,2]
[394653456,1763818233433,-440.34750483,7.968e-05,2]
[394653506,1763818240455,-500.0,7.965e-05,2]
[394653508,1763818240464,-337.20734335,7.965e-05,2]
[394653673,1763818245515,-162.79265665,7.965e-05,2]
[394653674,1763818245525,-500.0,7.965e-05,2]
[394653675,1763818245535,-212.61728661,7.965e-05,2]
[394653676,1763818245544,-500.0,7.965e-05,2]
[394653677,1763818245553,-351.92269819,7.965e-05,2]
[394653684,1763818246241,-148.07730181,7.965e-05,2]
[394653686,1763818246252,-500.0,7.965e-05,2]
[394653688,1763818246262,-448.32289076,7.965e-05,2]
[394653690,1763818246272,-51.67710924,7.965e-05,2]
[394653692,1763818246281,-225.9874844,7.965e-05,2]
[394653695,1763818246300,-274.0125156,7.965e-05,2]
[394653696,1763818246310,-144.92606058,7.965e-05,2]
[394653714,1763818246634,-355.07393942,7.965e-05,2]
[394653715,1763818246644,-500.0,7.965e-05,2]
[394653716,1763818246654,-500.0,7.965e-05,2]
[394653717,1763818246663,-500.0,7.965e-05,2]
[394653718,1763818246672,-500.0,7.965e-05,2]
[394653719,1763818246684,-500.0,7.965e-05,2]
[394653720,1763818246694,-500.0,7.965e-05,2]
[394653721,1763818246703,-500.0,7.965e-05,2]
[394653722,1763818246713,-500.0,7.965e-05,2]
[394653723,1763818246723,-500.0,7.965e-05,2]
[394653724,1763818246732,-500.0,7.965e-05,2]
[394653725,1763818246741,-500.0,7.965e-05,2]
[394653726,1763818246750,-500.0,7.965e-05,2]
[394653727,1763818246760,-500.0,7.965e-05,2]
[394653728,1763818246769,-500.0,7.965e-05,2]
[394653729,1763818246778,-500.0,7.965e-05,2]
[394653730,1763818246787,-359.74218317,7.965e-05,2]
[394653731,1763818278024,-300.0,7.964e-05,2]
[394653732,1763818278061,-452.19274024,7.965e-05,2]
[394653733,1763818278095,-811.93492341,7.965e-05,2]
[394653734,1763818278133,-811.93492341,7.965e-05,2]
[394653735,1763818278167,-811.93492341,7.965e-05,2]
[394653736,1763818278202,-811.93492341,7.965e-05,2]
[394653737,1763818278237,-811.93492341,7.965e-05,2]
[394653738,1763818278273,-811.93492341,7.965e-05,2]
[394653739,1763818278311,-811.93492341,7.965e-05,2]
[394653740,1763818278347,-811.93492341,7.965e-05,2]
[394653741,1763818278382,-811.93492341,7.965e-05,2]
[394653742,1763818278415,-811.93492341,7.965e-05,2]
[394653743,1763818278448,-811.93492341,7.965e-05,2]
[394653744,1763818278482,-811.93492341,7.965e-05,2]
[394653745,1763818278517,-811.93492341,7.965e-05,2]
[394653746,1763818278551,-811.93492341,7.965e-05,2]
[394653747,1763818278587,-811.93492341,7.965e-05,2]
[394653748,1763818278624,-811.93492341,7.965e-05,2]
[394653749,1763818278659,-811.93492341,7.965e-05,2]
[394653750,1763818278696,-811.93492341,7.965e-05,2]
[394653751,1763818278731,-811.93492341,7.965e-05,2]
[394653752,1763818278764,-811.93492341,7.965e-05,2]
[394653753,1763818278803,-811.93492341,7.965e-05,2]
[394653754,1763818278836,-811.93492341,7.965e-05,2]
[394653755,1763818278874,-811.93492341,7.965e-05,2]
[394653756,1763818279064,-811.93492341,7.965e-05,2]
[394653757,1763818279100,-811.93492341,7.965e-05,2]
[394653758,1763818279138,-811.93492341,7.965e-05,2]
[394653759,1763818279172,-811.93492341,7.965e-05,2]
[394653760,1763818279205,-811.93492341,7.965e-05,2]
[394653761,1763818279237,-811.93492341,7.965e-05,2]
[394653762,1763818279269,-591.45403833,7.965e-05,2]
[394653763,1763818279946,-220.48088508,7.965e-05,2]
[394653766,1763818682446,-150.0,7.965e-05,2]
[394653767,1763818682473,-1200.0,7.966e-05,2]
[394653768,1763818682499,-500.0,7.967e-05,2]
[394653769,1763818682526,-500.0,7.967e-05,2]
[394653770,1763818682554,-500.0,7.967e-05,2]
[394653771,1763818682582,-500.0,7.967e-05,2]
[394653772,1763818682610,-500.0,7.967e-05,2]
[394653773,1763818682637,-500.0,7.967e-05,2]
[394653774,1763818682665,-500.0,7.967e-05,2]
[394653775,1763818682695,-500.0,7.967e-05,2]
[394653776,1763818682723,-500.0,7.967e-05,2]
[394653777,1763818682751,-500.0,7.967e-05,2]
[394653778,1763818682778,-500.0,7.967e-05,2]
[394653779,1763818682804,-500.0,7.967e-05,2]
[394653780,1763818682837,-500.0,7.967e-05,2]
[394653781,1763818682865,-500.0,7.967e-05,2]
[394653782,1763818682892,-500.0,7.967e-05,2]
[394653783,1763818682921,-500.0,7.967e-05,2]
[394653784,1763818682947,-279.00217767,7.967e-05,2]
[394653785,1763818682973,-500.0,7.967e-05,2]
[394653786,1763818682999,-500.0,7.967e-05,2]
[394653787,1763818683037,-500.0,7.967e-05,2]
[394653788,1763818683063,-500.0,7.967e-05,2]
[394653789,1763818683088,-500.0,7.967e-05,2]
[394653790,1763818683114,-500.0,7.967e-05,2]
[394653791,1763818683143,-1427.41307873,7.967e-05,2]
[394653792,1763818683174,-1427.41307873,7.967e-05,2]
[394653793,1763818683204,-1427.41307873,7.967e-05,2]
[394653794,1763818683234,-1427.41307873,7.967e-05,2]
[394653795,1763818683263,-1427.41307873,7.967e-05,2]
[394653796,1763818683294,-1427.41307873,7.967e-05,2]
[394653797,1763818683325,-1427.41307873,7.967e-05,2]
[394653798,1763818683355,-1427.41307873,7.967e-05,2]
[394653799,1763818683388,-475.97330625,7.967e-05,2]
[394653800,1763818684172,-951.43977248,7.967e-05,2]
[394653801,1763818705474,-300.0,7.966e-05,2]
[394653802,1763818705503,-150.0,7.966e-05,2]
[394653803,1763818705536,-1427.41307873,7.967e-05,2]
[394653804,1763818705568,-1427.41307873,7.967e-05,2]
[394653805,1763818705599,-1427.41307873,7.967e-05,2]
[394653806,1763818705629,-1427.41307873,7.967e-05,2]
[394653807,1763818705659,-1427.41307873,7.967e-05,2]
[394653808,1763818705693,-1427.41307873,7.967e-05,2]
[394653809,1763818705723,-1427.41307873,7.967e-05,2]
[394653810,1763818705753,-1427.41307873,7.967e-05,2]
[394653811,1763818705782,-1427.41307873,7.967e-05,2]
[394653812,1763818705813,-1427.41307873,7.967e-05,2]
[394653813,1763818705849,-1427.41307873,7.967e-05,2]
[394653814,1763818705882,-1427.41307873,7.967e-05,2]
[394653815,1763818705917,-1427.41307873,7.967e-05,2]
[394653816,1763818705947,-1427.41307873,7.967e-05,2]
[394653817,1763818705978,-1427.41307873,7.967e-05,2]
[394653818,1763818706009,-1427.41307873,7.967e-05,2]
[394653819,1763818706041,-1427.41307873,7.967e-05,2]
[394653820,1763818706369,-567.95532318,7.967e-05,2]
[394653821,1763818718763,-859.45775555,7.967e-05,2]
[394653822,1763818718795,-1427.41307873,7.967e-05,2]
[394653823,1763818718825,-1427.41307873,7.967e-05,2]
[394653824,1763818718863,-1427.41307873,7.967e-05,2]
[394653825,1763818718896,-1427.41307873,7.967e-05,2]
[394653826,1763818718933,-1427.41307873,7.967e-05,2]
[394653827,1763818718962,-1427.41307873,7.967e-05,2]
[394653828,1763818718994,-1427.41307873,7.967e-05,2]
[394653829,1763818719032,-1427.41307873,7.967e-05,2]
[394653830,1763818719062,-1427.41307873,7.967e-05,2]
[394653831,1763818719093,-1427.41307873,7.967e-05,2]
[394653832,1763818719123,-1427.41307873,7.967e-05,2]
[394653833,1763818719153,-1427.41307873,7.967e-05,2]
[394653834,1763818719183,-1427.41307873,7.967e-05,2]
[394653835,1763818719212,-1427.41307873,7.967e-05,2]
[394653836,1763818719707,-1313.51828446,7.967e-05,2]
[394653837,1763818888625,-252.15732239,7.729e-05,2]
[394653838,1763818888654,-300.0,7.807e-05,2]
[394653839,1763818888980,-69895.68535522,7.867e-05,2]
[394653841,1763819111089,1000.0,0.0002,30]
[394653843,1763819140402,962.22396627,7.125e-05,2]
[394653848,1763819298610,980.67723795,7.125e-05,2]
[394653874,1763819438765,-980.67723795,7.197e-05,2]
[394653875,1763819438775,-500.0,7.27e-05,2]
[394653876,1763819438785,-480.67723795,7.27e-05,2]
[394653877,1763819438794,-150.0,7.499e-05,2]
[394653878,1763819438803,-4408.04920252,7.767e-05,2]
[394653879,1763819438812,-300.0,7.784e-05,2]
[394653880,1763819438822,-1200.0,7.784e-05,2]
[394653881,1763819438831,-1200.0,7.785e-05,2]
[394653882,1763819438840,-300.0,7.842e-05,2]
[394653883,1763819438849,-500.0,7.843e-05,2]
[394653884,1763819438858,-500.0,7.843e-05,2]
[394653885,1763819438868,-500.0,7.843e-05,2]
[394653886,1763819438878,-500.0,7.843e-05,2]
[394653887,1763819438887,-500.0,7.843e-05,2]
[394653888,1763819438897,-391.98915067,7.862e-05,2]